[Event "European Women-ch 2023"]
[Site "Petrovac"]
[Date "2023.03.19"]
[Round "2.14"]
[White "Shpanko, Nadiia"]
[Black "Khotenashvili, Bela"]
[Result "0-1"]
[ECO "B07"]
[WhiteElo "2164"]
[BlackElo "2491"]
[Annotator "TA"]
[PlyCount "74"]
[EventDate "2023.03.15"]
[EventType "swiss"]
[EventCountry "MNE"]
[SourceTitle "playchess.com"]
[Source "ChessBase"]
[SourceQuality "1"]
[TimeControl "40/5400+30:1800+30"]

{[%evp 16,74,6,3,18,9,5,14,59,56,43,38,33,29,29,-17,-30,-15,-14,-12,0,-28,-36,-37,0,0,0,0,0,0,0,0,0,0,0,-9,33,-60,0,-144,-116,-168,-150,-150,-170,-373,-355,-504,-512,-576,-518,-1051,-1039,-1335,-1262,-29984,-29983,-29987,-29983,-29991,-29992]} 1. e4 {[%emt 0:00:03]} g6 {[%emt 0:00:21]} 2. d4 {[%emt 0:00:21]} Bg7 {[%emt 0:00:16]} 3. Nc3 {[%emt 0:00:46]} d6 {[%emt 0:00:14]} 4. Be3 {[%emt 0:02:16]} c6 {[%emt 0:00:20]} 5. Qd2 {[%emt 0:04:17]} b5 {[%emt 0:00:39]} 6. f3 {[%emt 0:09:01]} Nf6 {[%emt 0:07:27]} 7. Nge2 {[%emt 0:06:21]} Nbd7 {[%emt 0:03:37][%cal Bb8d7,Bd7b6,Bb6c4][%mdl 32]} 8. Bh6 {[%emt 0:15:01]} Bxh6 {[%emt 0:03:58]} 9. Qxh6 {[%emt 0:00:06]} Qa5 {[%emt 0:00:16] B07: Pirc Defence: Miscellaneous Systems.} 10. h4 {[%emt 0:07:21]} b4 {[%emt 0:10:34]} 11. Nd1 {[%emt 0:00:27] [#]} Nb6 $146 {[%emt 0:05:43] The position is equal.} ({Predecessor:} 11... Ba6 12. Qd2 Qb6 13. a3 bxa3 14. Rxa3 c5 15. d5 h5 16. Nec3 Bxf1 17. Rxf1 Ne5 {1-0 Jumabayev,R (2654)-Shahinyan,D (2456) PNWCC Online blitz JP 9th 2020 (10)}) 12. g4 {[%emt 0:09:00]} Ba6 {[%emt 0:30:52]} 13. Nc1 {[%emt 0:04:33]} Bxf1 {[%emt 0:00:33]} 14. Rxf1 {[%emt 0:00:16]} Nc4 {[%emt 0:01:53]} 15. Nb3 {[%emt 0:02:39]} (15. Kf2 $142) 15... Qb6 $11 {[%emt 0:03:23]} 16. Rb1 {[%emt 0:04:34]} a5 {[%emt 0:01:23][%cal Ba7a5,Ba5a4][%mdl 32]} 17. Ne3 {[%emt 0:02:46]} Qb5 {[%emt 0:03:40]} 18. Nxc4 {[%emt 0:05:40]} Qxc4 {[%emt 0:00:02]} 19. Qd2 {[%emt 0:00:17]} a4 {[%emt 0:03:29]} 20. Nc1 {[%emt 0:00:09]} h5 {[%emt 0:01:13]} 21. g5 {[%emt 0:01:15]} Nd7 $36 {[%emt 0:00:01][%mdl 2048] Black is more active.} 22. b3 {[%emt 0:05:51]} axb3 {[%emt 0:04:41]} 23. axb3 {[%emt 0:00:06]} Qb5 {[%emt 0:00:37]} 24. Nd3 {[%emt 0:01:22]} Rb8 {[%emt 0:00:57]} 25. f4 {[%emt 0:03:43]} e6 {[%emt 0:06:51]} 26. Qh2 {[%emt 0:07:39]} ({White should play} 26. f5 $14 exf5 27. exf5) 26... O-O {[%emt 0:08:50]} (26... Qb6 $15 27. Qf2 c5) 27. Kd2 {[%emt 0:01:57]} (27. f5 $1 $11 {keeps the balance.} exf5 28. exf5) 27... d5 $17 {[%emt 0:00:25]} 28. e5 {[%emt 0:02:34]} (28. exd5 $17 {keeps fighting.} Qxd5 29. Qf2) 28... c5 {[%emt 0:00:18][%cal Bc6c5,Bc5d4][%mdl 32]} 29. f5 {[%emt 0:01:07]} exf5 {[%emt 0:00:13]} ({But not} 29... gxf5 30. Qe2 Kg7 31. g6 $14 (31. Qxh5 Rh8 $17 {[%mdl 64] Skewer, Deflection})) ({Not} 29... cxd4 30. fxg6 fxg6 31. Qg1 $15) 30. Nf4 $2 {[%emt 0:02:25] [#]} (30. e6 c4 31. Nf4 cxb3 32. cxb3) 30... cxd4 $19 {[%emt 0:00:58]} 31. e6 {[%emt 0:00:51]} (31. Qf2 {was called for.}) 31... Nc5 {[%emt 0:00:06][%cal Bd7c5,Bc5e4,Be4g3][%mdl 32]} 32. exf7+ {[%emt 0:00:23]} Kxf7 {[%emt 0:00:29]} 33. Nxh5 {[%emt 0:01:05]} (33. Nd3 $142 Ne4+ 34. Ke2) 33... Ne4+ {[%emt 0:00:01]} 34. Ke1 {[%emt 0:00:08]} gxh5 {[%emt 0:02:13]} 35. Rxf5+ {[%emt 0:00:30]} Kg6 {[%emt 0:00:25] Black mates.} 36. Rf4 {[%emt 0:00:40]} Rbe8 {[%emt 0:00:34]} 37. Ra1 {[%emt 0:00:26]} Ng3+ {[%emt 0:00:45] An entertaining game by Khotenashvili.   Weighted Error Value: White=1.07/Black=0.07 (flawless)} 0-1

[Event "European Women-ch 2023"]
[Site "Petrovac"]
[Date "2023.03.19"]
[Round "2.14"]
[White "Allahverdiyeva, Ayan"]
[Black "Buchholz, Maja Patricia"]
[Result "1/2-1/2"]
[ECO "C10"]
[WhiteElo "2124"]
[BlackElo "1883"]
[Annotator "TA"]
[PlyCount "60"]
[EventDate "2023.03.15"]
[EventType "swiss"]
[EventCountry "MNE"]
[SourceTitle "playchess.com"]
[Source "ChessBase"]
[SourceQuality "1"]
[TimeControl "40/5400+30:1800+30"]

{[%evp 23,60,50,77,77,77,83,81,83,79,88,86,93,149,154,150,147,193,159,182,186,183,178,167,48,60,0,0,-230,0,0,0,0,0,0,0,0,0,0,0]} 1. e4 {[%emt 0:01:05]} e6 {[%emt 0:00:07]} 2. d4 {[%emt 0:00:05]} d5 {[%emt 0:00:07]} 3. Nd2 {[%emt 0:00:25]} dxe4 {[%emt 0:00:09]} 4. Nxe4 {[%emt 0:00:05]} Nd7 {[%emt 0:00:10]} 5. Nf3 {[%emt 0:06:10]} Ngf6 {[%emt 0:00:11]} 6. Bd3 {[%emt 0:03:50]} c5 {[%emt 0:00:17]} 7. Bg5 {[%emt 0:07:40]} Be7 {[%emt 0:01:16]} 8. Nxc5 {[%emt 0:05:17]} Nxc5 {[%emt 0:01:21]} 9. dxc5 {[%emt 0:00:03]} Qa5+ {[%emt 0:01:01]} 10. c3 {[%emt 0:09:03]} Qxc5 {[%emt 0:00:43]} 11. Qe2 $1 {[%emt 0:00:47] 11.Qe2 scores better than 11.0-0.} O-O {[%emt 0:02:20]} 12. O-O-O {[%emt 0:01:04]} Rd8 {[%emt 0:06:48]} 13. Bxf6 {[%emt 0:09:43] C10: French with 3 Nc3: Unusual Black 3rd moves and 3...dxe4.} (13. Ne5 {is interesting.} h6 14. Bh4 Qc7 15. f4) 13... Bxf6 {[%emt 0:00:53] [#]} 14. Bxh7+ $1 {[%emt 0:00:20]} Kxh7 {[%emt 0:03:55]} 15. Rxd8 {[%emt 0:00:39][%mdl 64] Remove Defender. White is better.} Bxd8 {[%emt 0:01:39]} 16. Qd3+ {[%emt 0:00:04]} Qf5 {[%emt 0:01:03]} 17. Qxd8 {[%emt 0:00:07]} b6 {[%emt 0:01:13] [#]} (17... f6 $142) 18. Ng5+ $146 {[%emt 0:07:36]} ({Predecessor:} 18. Qc7 Ba6 19. Re1 Kg8 20. Qe5 Qxe5 21. Nxe5 Kf8 22. h4 Bb7 23. g3 f6 24. Nd3 {1-0 Fichtl,J-Fuchs,R Lasker Memorial 1962 (6)}) 18... Kg6 {[%emt 0:09:09] Strongly threatening ...Bb7.} 19. h4 {[%emt 0:09:55][%cal Bh2h4,Bh4h5][%mdl 32] Threatening mate with h5+. White is more active.} Bb7 {[%emt 0:08:38]} (19... Qf4+ $16 20. Kb1 Bb7) 20. Qe7 {[%emt 0:03:48]} (20. h5+ $2 Kh6 21. Nxf7+ Qxf7 22. Qd2+ Kh7 23. Qc2+ Kg8 $19) 20... Bxg2 {[%emt 0:08:35]} 21. h5+ {[%emt 0:03:21][%mdl 64] Deflection} (21. Rg1 Qxf2 22. Qxf7+ Qxf7 $11) 21... Kh6 {[%emt 0:00:17]} 22. Nxf7+ {[%emt 0:00:11]} Kh7 {[%emt 0:00:21] [#]} 23. Ng5+ {[%emt 0:01:33]} ({White should play} 23. Rh4 $1 $18 {Threatens to win with h6.} Qf6 24. Ng5+ Kh6 25. Qxf6+ (25. Qxe6 Kxg5 26. Rg4+ Kxh5 $16) 25... gxf6 26. Nxe6) 23... Kh6 $14 {[%emt 0:03:38][%cal Bh7h6,Bh6h5,Bh5g4][%mdl 32]} 24. Nxe6 {[%emt 0:00:06]} (24. Qxe6+ $2 {too greedy.} Qxe6 25. Nxe6 Bxh1 $19) (24. Rg1 $14 Qf4+ 25. Kb1 Qf5+ 26. Ka1 Qxg5 27. Qxe6+ (27. Qxg5+ Kxg5 28. Rxg2+ Kf6 $14) 27... Kh7 28. Qg6+ {[%mdl 64] Decoy} Qxg6 29. hxg6+ Kxg6 30. Rxg2+ Kh6 31. a3) 24... Bxh1 $11 {[%emt 0:02:29]} 25. Qxg7+ {[%emt 0:00:44]} Kxh5 {[%emt 0:00:07]} 26. Qg1 $1 {[%emt 0:00:46] Intending Ng7+ and mate. Really sharp! The position is equal.} Qxe6 {[%emt 0:07:25]} 27. Qxh1+ {[%emt 0:00:06]} Kg4 {[%emt 0:00:34]} 28. Qxa8 {[%emt 0:00:30] Qg2+ would be deadly.} Qe1+ {[%emt 0:00:16]} 29. Kc2 {[%emt 0:00:02] Black must now prevent Qg8+.} Qe2+ $1 {[%emt 0:00:10]} 30. Kb3 {[%emt 0:00:09] Hoping for Qd5.} Qb5+ {[%emt 0:00:07] White really could win this.   Weighted Error Value: White=0.19 (very precise) /Black=0.18 (very precise)} 1/2-1/2

[Event "European Women-ch 2023"]
[Site "Petrovac"]
[Date "2023.03.19"]
[Round "2.15"]
[White "Gunina, Valentina"]
[Black "Lach, Aleksandra"]
[Result "1-0"]
[ECO "B23"]
[WhiteElo "2478"]
[BlackElo "2170"]
[Annotator "TA"]
[PlyCount "137"]
[EventDate "2023.03.15"]
[EventType "swiss"]
[EventCountry "MNE"]
[SourceTitle "playchess.com"]
[Source "ChessBase"]
[SourceQuality "1"]
[TimeControl "40/5400+30:1800+30"]

{[%evp 9,137,35,29,41,40,27,34,37,47,28,38,49,56,60,61,63,56,52,211,132,217,216,205,177,293,292,294,292,285,297,291,297,323,316,319,327,309,320,332,328,310,321,305,273,269,260,270,246,270,259,265,258,253,260,267,266,266,262,340,366,415,408,404,404,383,386,652,643,1007,980,849,694,662,681,667,657,809,861,814,714,872,863,902,875,1238,1213,974,658,823,804,1953,1926,1858,1857,1218,1492,1454,1456,1284,1247,1986,1299,1232,985,29979,29980,29979,29975,29973,29974,29974,29975,29974,29973,29977,29978,29973,29972,29967,29962,29981,29982,29975,29975,29980,29980,29981,29980,29983,29978]} 1. e4 {[%emt 0:00:04]} c5 {[%emt 0:00:33]} 2. Nc3 {[%emt 0:00:06]} g6 {[%emt 0:07:01]} 3. d4 {[%emt 0:06:56]} cxd4 {[%emt 0:02:00]} 4. Qxd4 {[%emt 0:00:06]} Nf6 {[%emt 0:00:05]} 5. Be3 {[%emt 0:10:25]} Nc6 {[%emt 0:03:36]} 6. Qd2 {[%emt 0:00:06] B23: Closed Sicilian: Lines without g3.} Bg7 {[%emt 0:03:11]} 7. f3 {[%emt 0:00:14] Dodges Ng4} O-O {[%emt 0:10:02]} 8. O-O-O {[%emt 0:00:42] White is slightly better. 8.Nge2 is more advanced technology.} d6 {[%emt 0:00:23]} 9. Nge2 {[%emt 0:04:49]} Qa5 {[%emt 0:11:15]} 10. Kb1 {[%emt 0:10:58]} Be6 {[%emt 0:09:34] [#]} 11. Nf4 $146 {[%emt 0:07:10]} ({Predecessor:} 11. Bh6 Bxh6 12. Qxh6 Rac8 13. h4 Ne5 14. h5 Nc4 15. hxg6 fxg6 16. Rd3 Bf7 17. f4 {1-0 Kollars,D (2621)-Bauer,T (2230) Norway Chess op 2021 (1)}) 11... Rac8 {[%emt 0:10:24][%cal Of6e4]} 12. Nxe6 {[%emt 0:00:46]} fxe6 {[%emt 0:00:05]} 13. Bc4 {[%emt 0:03:10]} d5 $2 {[%emt 0:22:48] Black cannot hold the game after this.} 14. Bb3 {[%emt 0:02:25][%cal Re4d5]} Kh8 {[%emt 0:06:05]} (14... d4 $16 {was called for.}) 15. exd5 $18 {[%emt 0:02:44]} Rfd8 {[%emt 0:00:43]} 16. Rhe1 {[%emt 0:00:46]} a6 {[%emt 0:06:30]} (16... b5 {might work better.} 17. Qf2 Nxd5 18. Nxd5 exd5 19. Rxd5 Rxd5 20. Bxd5 b4) 17. Qf2 {[%emt 0:01:28]} Nxd5 {[%emt 0:01:05]} 18. Nxd5 {[%emt 0:00:06]} Rxd5 {[%emt 0:00:08]} 19. Bxd5 {[%emt 0:02:15]} exd5 {[%emt 0:00:02]} 20. c3 {[%emt 0:00:26]} e5 {[%emt 0:01:21]} 21. Bb6 {[%emt 0:00:59]} Qb5 {[%emt 0:00:28]} 22. Qc5 {[%emt 0:01:13]} Qxc5 {[%emt 0:00:44]} 23. Bxc5 {[%emt 0:00:02]} d4 {[%emt 0:00:58]} 24. cxd4 {[%emt 0:00:21]} exd4 {[%emt 0:00:01]} 25. f4 {[%emt 0:00:43]} Kg8 {[%emt 0:00:59]} 26. Rd3 {[%emt 0:00:50]} Rd8 {[%emt 0:00:50]} 27. a3 {[%emt 0:03:29]} Kf7 {[%emt 0:00:49]} 28. g4 {[%emt 0:04:35]} Rd5 {[%emt 0:00:20]} 29. Bb6 {[%emt 0:02:27]} h5 {[%emt 0:00:17]} 30. h3 {[%emt 0:00:18]} Rb5 {[%emt 0:01:55]} 31. Bc7 {[%emt 0:00:40]} hxg4 {[%emt 0:00:54]} 32. hxg4 {[%emt 0:00:02]} Rd5 {[%emt 0:00:42]} 33. Rb3 {[%emt 0:01:52]} b5 {[%emt 0:00:07]} 34. Rc1 {[%emt 0:00:47]} Ne7 {[%emt 0:00:23]} 35. Ba5 {[%emt 0:00:29]} Rd7 {[%emt 0:00:33]} 36. Bd2 {[%emt 0:00:16]} Ke6 {[%emt 0:00:54]} 37. Rh3 {[%emt 0:02:24]} Kd5 $2 {[%emt 0:00:35]} (37... Kf7 38. Kc2 Nd5) 38. Rh7 {[%emt 0:00:51]} Ng8 {[%emt 0:00:33]} 39. g5 {[%emt 0:00:26] Inhibits Nf6.} Rf7 {[%emt 0:00:11]} 40. Bb4 {[%emt 0:00:00]} a5 {[%emt 0:00:00] [#]} 41. Bf8 {[%emt 0:03:41][%mdl 576] Deflection} Rxf8 {[%emt 0:07:25]} 42. Rxg7 {[%emt 0:00:54][%mdl 4096] Endgame KRR-KRN} b4 {[%emt 0:00:03]} 43. axb4 {[%emt 0:00:56]} axb4 {[%emt 0:00:03]} 44. Ka2 {[%emt 0:00:05]} Ke4 {[%emt 0:04:45]} 45. Re1+ {[%emt 0:01:43]} Kf3 {[%emt 0:08:56]} 46. Rxg6 {[%emt 0:00:19]} Ra8+ {[%emt 0:01:14]} 47. Kb3 {[%emt 0:00:18]} Kxf4 {[%emt 0:00:04]} 48. Kxb4 {[%emt 0:00:22] [#] Kc4 is the strong threat.} Kf5 {[%emt 0:01:34]} 49. Rg7 {[%emt 0:00:06] And now Kc4 would win.} Rd8 {[%emt 0:00:39]} 50. Kc4 {[%emt 0:00:06]} d3 {[%emt 0:00:09]} 51. Kc3 {[%emt 0:00:08]} d2 {[%emt 0:01:36]} 52. Rd1 {[%emt 0:00:05]} Re8 {[%emt 0:00:08]} 53. Rxd2 {[%emt 0:00:26]} Ne7 {[%emt 0:00:06]} 54. b4 {[%emt 0:00:13]} Rc8+ {[%emt 0:00:56]} 55. Kb3 {[%emt 0:00:06]} Nc6 {[%emt 0:00:01]} 56. Rgd7 {[%emt 0:00:27] Threatens to win with R2d5+.} Kxg5 {[%emt 0:01:27]} 57. Rf7 {[%emt 0:01:11] White mates.} Kg4 {[%emt 0:03:13]} 58. Rd1 {[%emt 0:01:45]} Kg3 {[%emt 0:00:34]} 59. Rg1+ {[%emt 0:00:13]} Kh2 {[%emt 0:00:03]} 60. Rg5 {[%emt 0:01:01][%cal Rf7h7]} Nd4+ {[%emt 0:01:02]} 61. Kb2 {[%emt 0:00:07][%cal Rf7h7]} Rh8 {[%emt 0:00:31]} 62. b5 {[%emt 0:00:08][%cal Bb4b5,Bb5b6,Bb6b7][%mdl 32]} Rh6 {[%emt 0:02:05]} 63. Kc3 {[%emt 0:00:13]} Ne6 {[%emt 0:00:30]} 64. Re5 {[%emt 0:00:10]} Kg3 {[%emt 0:01:49]} 65. b6 {[%emt 0:00:21]} Nd8 {[%emt 0:01:20]} 66. Rd7 {[%emt 0:00:07]} Rc6+ {[%emt 0:00:46]} 67. Kd4 {[%emt 0:00:07]} Rc8 {[%emt 0:01:08]} 68. b7 {[%emt 0:00:47]} Rb8 {[%emt 0:00:25]} 69. Rxd8 {[%emt 0:00:09] Weighted Error Value: White=0.23 (precise) /Black=0.32} 1-0

[Event "European Women-ch 2023"]
[Site "Petrovac"]
[Date "2023.03.19"]
[Round "2.15"]
[White "Kostina, Veronika"]
[Black "Koridze, Lile"]
[Result "0-1"]
[ECO "A28"]
[WhiteElo "1855"]
[BlackElo "2122"]
[Annotator "TA"]
[PlyCount "155"]
[EventDate "2023.03.15"]
[EventType "swiss"]
[EventCountry "MNE"]
[SourceTitle "playchess.com"]
[Source "ChessBase"]
[SourceQuality "1"]
[TimeControl "40/5400+30:1800+30"]

{[%evp 18,155,32,33,37,29,45,27,59,50,48,26,54,40,48,30,35,42,29,0,0,-11,-6,-10,0,0,0,0,33,31,35,28,43,40,85,32,24,31,24,21,31,30,47,50,50,52,54,61,77,52,77,-10,-14,-179,-173,-164,-198,-620,0,-264,0,0,0,0,0,0,0,0,0,0,0,-27,-2,-310,-300,-303,-190,-259,-204,-248,-249,-249,-249,-249,-249,-439,-233,-218,-202,-589,-576,-739,-731,-12834,-12834,-12837,-12835,-12841,-12842,-12843,0,-12839,-12839,-12839,-12840,-12847,-12847,-12848,-12847,-12848,-12846,-12846,-12847,-12847,-12846,-27999,-27999,-27999,-27999,-27999,-27999,-27999,-27999,-27999,-27999,-27999,-27999,-27999,-27999,-27999,-27999,-27999,-27999,-27999,-27999,-27999,-27999,-27999,-27999,-27999]} 1. c4 {[%emt 0:00:04]} e5 {[%emt 0:00:06]} 2. Nc3 {[%emt 0:00:11]} Nf6 {[%emt 0:00:05]} 3. Nf3 {[%emt 0:00:44]} Nc6 {[%emt 0:00:47]} 4. e3 {[%emt 0:00:56]} d5 {[%emt 0:04:40]} 5. cxd5 {[%emt 0:00:56]} Nxd5 {[%emt 0:00:05]} 6. Bb5 {[%emt 0:00:58]} Nxc3 {[%emt 0:02:43]} 7. bxc3 {[%emt 0:00:13]} Bd6 {[%emt 0:01:26]} 8. d4 {[%emt 0:00:38]} exd4 {[%emt 0:02:28]} 9. cxd4 {[%emt 0:00:40]} O-O {[%emt 0:01:59]} 10. O-O {[%emt 0:00:34]} Bg4 {[%emt 0:02:17][%cal Bc8g4,Bg4h5,Bh5g6][%mdl 32] A28: English Opening: Four Knights Variation.} 11. h3 {[%emt 0:01:25]} Bh5 {[%emt 0:01:17]} 12. Rb1 {[%emt 0:01:46]} Qf6 {[%emt 0:12:08] White has an edge.} 13. Be2 {[%emt 0:03:14]} Rab8 {[%emt 0:01:38] [#]} 14. Bb2 $146 {[%emt 0:03:06]} ({Predecessor:} 14. Rb5 Bg6 15. Bb2 a6 16. Rb3 Qe7 17. Bc3 Rfd8 18. Nd2 Bb4 19. Bf3 Bxc3 20. Rxc3 {1-0 Yilmaz,M (2629)-Cherniaiev,T (2330) Titled Tuesday intern op 28th Feb Early blitz 2023 (9)}) 14... Bg6 {[%emt 0:08:42]} 15. Bd3 {[%emt 0:03:50]} Rfe8 {[%emt 0:05:16]} 16. Bc3 {[%emt 0:04:58]} b6 {[%emt 0:09:11]} 17. Re1 {[%emt 0:07:54]} a5 {[%emt 0:06:13]} 18. Bxg6 {[%emt 0:05:05]} Qxg6 {[%emt 0:00:24]} 19. Qd2 {[%emt 0:02:35]} Nb4 {[%emt 0:03:46]} 20. Rec1 {[%emt 0:02:59]} Nd5 {[%emt 0:01:41][%cal Bb4d5,Bd5f6,Bf6e4][%mdl 32]} 21. Qc2 {[%emt 0:05:43]} Qh5 {[%emt 0:03:26]} 22. Bd2 {[%emt 0:03:52]} Nf6 {[%emt 0:03:09]} 23. a4 {[%emt 0:01:59]} Ne4 {[%emt 0:01:43]} 24. Rb5 {[%emt 0:02:40]} Qg6 {[%emt 0:05:58]} 25. Be1 {[%emt 0:01:29]} f6 {[%emt 0:04:39] [#]} 26. Rcb1 {[%emt 0:03:25]} (26. Nh4 $1 $16 {[%cal Rh4g6]} Qf7 27. f3) 26... Rbd8 $14 {[%emt 0:01:56]} 27. Nh4 {[%emt 0:13:05]} Qf7 {[%emt 0:00:12]} 28. Nf5 {[%emt 0:08:46]} Bf8 {[%emt 0:00:12]} 29. f3 {[%emt 0:01:38]} Nd6 {[%emt 0:01:45]} 30. Nxd6 {[%emt 0:01:22]} Bxd6 {[%emt 0:00:09]} 31. Bf2 {[%emt 0:00:44]} g6 {[%emt 0:01:29]} 32. e4 {[%emt 0:01:18]} Bb4 {[%emt 0:02:09]} 33. Rc1 {[%emt 0:04:49]} Rd7 {[%emt 0:01:26]} 34. d5 {[%emt 0:02:56]} ({Better is} 34. Qc4 $16) 34... f5 $11 {[%emt 0:00:18]} (34... Bd6 {simplifies} 35. Kf1 f5 36. exf5 Qxf5 37. Qxf5 gxf5 38. Rc6 Rf8) 35. Bd4 $2 {[%emt 0:04:56]} (35. exf5 $11 {and White has nothing to worry.} Qxf5 36. Qxf5 gxf5 37. Bg3 Bc5+ 38. Kf1) 35... fxe4 $19 {[%emt 0:00:36]} 36. fxe4 {[%emt 0:01:00]} Qf4 {[%emt 0:00:22] Strongly threatening ...Bd6.} 37. Qc6 {[%emt 0:01:44] Against Bd6} (37. Rxb4 axb4 38. Qc4) 37... Rf8 $2 {[%emt 0:03:00]} (37... Bd6 $19 {( -> ...Qh2+)} 38. Rb3 (38. Qxd7 Qxc1+ 39. Kf2 Qd2+ 40. Kf3 Qd3+ 41. Be3 Qxe4+ 42. Ke2 Qxe3+ 43. Kd1 Qd3+ 44. Kc1 Ba3+ 45. Rb2 Re1#) 38... Qh2+ 39. Kf1 Rxe4 40. Qa8+ Bf8) 38. Qe6+ $2 {[%emt 0:01:13][%mdl 8192] [#]} (38. Qxd7 $2 Qxc1+ 39. Kh2 Bd6+ 40. e5 Qf4+ 41. Kh1 Qxd4 $19) (38. Rd1 $11 Rdf7 39. Qe6) 38... Rdf7 $2 {[%emt 0:00:39]} (38... Rff7 $1 $19 39. Qe8+ Bf8) 39. Rd1 $11 {[%emt 0:00:31]} Bd6 {[%emt 0:02:20][%csl Gd6][%cal Rf4h2] Really sharp!} 40. e5 {[%emt 0:00:00]} Bb4 $40 {[%emt 0:00:00][%mdl 128] Black attacks.} 41. Qg4 {[%emt 0:11:26]} Qxg4 {[%emt 0:05:04]} (41... Re8 {feels hotter.} 42. e6 Rf5 43. Qxf4 Rxf4 44. Be5 Rc4) 42. hxg4 {[%emt 0:00:02]} Rf4 {[%emt 0:00:11]} 43. g5 {[%emt 0:02:37]} Re4 {[%emt 0:03:35]} 44. g3 {[%emt 0:07:49]} Rf5 {[%emt 0:04:41]} 45. e6 $2 {[%emt 0:05:12][%mdl 8192] Black keeps a firm grip on the game.} (45. d6 $11 {and White is okay.} cxd6 46. exd6 Bxd6 47. Bxb6 Bxg3 48. Rxf5 gxf5 49. Rd5) 45... Rxg5 $19 {[%emt 0:03:31]} 46. Kg2 {[%emt 0:01:07][%cal Od5d6] And now d6! would win.} Rf5 {[%emt 0:03:03]} 47. Rd3 {[%emt 0:04:17]} (47. d6 {might work better.} Re2+ 48. Kg1 cxd6 49. Bxb6) 47... h5 {[%emt 0:01:55]} 48. d6 {[%emt 0:05:18]} Bxd6 {[%emt 0:00:42]} (48... cxd6 $2 {too greedy.} 49. Rxf5 gxf5 50. Bxb6) 49. Rxf5 {[%emt 0:00:33]} gxf5 {[%emt 0:00:05]} 50. Bxb6 {[%emt 0:00:12]} Rxa4 {[%emt 0:02:54][%mdl 4096] Endgame ...Kf8 would be deadly. KRB-KRB} 51. Bd4 $2 {[%emt 0:00:47]} (51. Rd5 cxb6 52. Rxd6) 51... Kf8 {[%emt 0:00:36]} (51... Ra3 $142 52. Rd1 Rxg3+ 53. Kf2 Rg6) 52. Bf6 {[%emt 0:00:35]} Re4 {[%emt 0:01:25]} 53. e7+ {[%emt 0:00:20]} (53. Rd5 {was the crucial defense.}) 53... Kf7 {[%emt 0:01:15]} 54. Bh4 {[%emt 0:00:18]} Bxe7 {[%emt 0:02:20]} 55. Bxe7 {[%emt 0:00:13]} Kxe7 {[%emt 0:00:47] KR-KR} (55... Rxe7 $2 {loses.} 56. Rd5 $19) 56. Rd5 {[%emt 0:00:12]} a4 {[%emt 0:02:02][%cal Ba5a4,Ba4a3][%mdl 32]} 57. Rxf5 {[%emt 0:00:21]} h4 {[%emt 0:00:04]} 58. Kf3 {[%emt 0:00:41]} Rb4 $2 {[%emt 0:00:12]} (58... Re1 $19 59. Kf2 Ra1 60. gxh4 a3) 59. g4 $2 {[%emt 0:00:26][%mdl 8192]} (59. gxh4 $11 Rxh4 60. Ke3) 59... a3 {[%emt 0:00:53]} 60. Ra5 {[%emt 0:00:10]} Rb3+ {[%emt 0:00:12]} 61. Kg2 {[%emt 0:00:10]} Rg3+ {[%emt 0:00:31]} 62. Kh2 {[%emt 0:00:40]} Kd6 {[%emt 0:00:31]} 63. g5 {[%emt 0:00:14]} c5 {[%emt 0:00:37]} 64. g6 {[%emt 0:00:45]} Kd5 {[%emt 0:00:17]} ({Not} 64... Rxg6 65. Ra6+ Kd5 66. Rxg6 $11) 65. g7 {[%emt 0:01:05]} Rxg7 {[%emt 0:00:19]} 66. Rxa3 {[%emt 0:00:01]} Rg4 {[%emt 0:00:06] Black mates.} 67. Ra8 {[%emt 0:00:18]} Rd4 {[%emt 0:01:01]} 68. Kh3 {[%emt 0:00:16]} Kc4 {[%emt 0:00:46]} 69. Rc8 {[%emt 0:00:26]} Kb4 {[%emt 0:00:05]} 70. Rc7 {[%emt 0:00:30]} c4 {[%emt 0:00:08]} 71. Rb7+ {[%emt 0:00:23]} Kc3 {[%emt 0:00:06]} 72. Rc7 {[%emt 0:00:05]} Kd3 {[%emt 0:00:06]} 73. Ra7 {[%emt 0:00:15]} c3 {[%emt 0:00:08]} 74. Rc7 {[%emt 0:00:36]} c2 {[%emt 0:00:09]} 75. Rc8 {[%emt 0:00:18]} Kd2 {[%emt 0:00:10]} 76. Kh2 {[%emt 0:00:20]} c1=Q {[%emt 0:00:14]} 77. Rc7 {[%emt 0:00:03]} Qc3 78. Rxc3 {[%emt 0:00:00] Weighted Error Value: White=0.77/Black=0.37} 0-1